Cogmind - Beta 17 @@@ ROGUE MODE // 2026.07.07 @ 14:22:36 Player: ldi (hl). (hl) Result: Destroyed by 2M-353(R) with Subdweller Laser Performance ------------- Evolutions (0) 0 Regions Visited (2) 400 Robots Destroyed (14) 70 Value Destroyed (307) 307 Prototype IDs (0) 0 Alien Tech Used (0) 0 Bonus (0) 0 TOTAL SCORE: 777 Bonus ------- None Cogmind --------- Core Integrity 0/250 Matter 289/300 Energy 125/125 System Corruption 0% Temperature Cool (6) Movement Walking (120) Location -10/Subcaves Parts ------- > --- POWER (1) -------- Light Ion Engine > --- PROPULSION (2) --- Aluminum Leg Aluminum Leg > --- UTILITY (2) ------ Heat Sink Medium Storage Unit > --- WEAPON (2) ------- Medium Laser Light Assault Rifle > --- INVENTORY (10) --- Aluminum Leg Subdweller Laser Beam Cannon Beam Cannon Beam Cannon Battle Rifle Grenade Launcher Grenade Launcher Peak State ------------ > --- POWER ------------ Light Ion Engine > --- PROPULSION ------- Aluminum Leg Aluminum Leg > --- UTILITY ---------- Heat Sink Medium Storage Unit > --- WEAPON ----------- Medium Laser Light Assault Rifle > --- INVENTORY -------- Aluminum Leg Aluminum Leg Subdweller Laser Beam Cannon Beam Cannon Beam Cannon Battle Rifle Grenade Launcher Grenade Launcher [Rating: 8] Favorites ----------- Power Ion Engine Engine Ion Engine Propulsion Aluminum Leg Leg Aluminum Leg Utility Medium Storage Unit Device Heat Sink Storage Medium Storage Unit Weapon Light Assault Rifle Energy Gun Medium Laser Ballistic Gun Light Assault Rifle Build | -11 -10 -10 ------- Run | Yrd Mat Sub Slots Evolved . | . . . Power . | . . . Propulsion . | . . . Utility . | . . . Weapon . | . . . Parts Attached 11 | 5 4 2 Power 3 | 1 1 1 Engine 3 | 1 1 1 Core . | . . . Reactor . | . . . Propulsion 3 | 2 1 . Treads . | . . . Leg 3 | 2 1 . Wheel . | . . . Hover . | . . . Flight . | . . . Utility 2 | . 2 . Device 1 | . 1 . Storage 1 | . 1 . Processor . | . . . Hackware . | . . . Protection . | . . . Artifact . | . . . Weapon 3 | 2 . 1 Energy Gun 1 | . . 1 Energy Cannon . | . . . Ballistic Gun 2 | 2 . . Ballistic Cannon . | . . . Launcher . | . . . Special Weapon . | . . . Impact Weapon . | . . . Slashing Weapon . | . . . Piercing Weapon . | . . . Special Melee Weapon . | . . . Unidentified Prototypes . | . . . Parts Lost 4 | . 1 3 Power 2 | . 1 1 Propulsion 1 | . . 1 Utility . | . . . Weapon 1 | . . 1 Highest Loss Streak 2 | . 1 2 To Critical Strikes . | . . . Average Backups 6 | 1 7 8 Power . | . . . Propulsion 1 | . 1 1 Utility . | . . . Weapon 4 | . 4 6 Tool/Special . | . . . Unused Backups 8 | . . 8 Power . | . . . Propulsion 1 | . . 1 Utility . | . . . Weapon 7 | . . 7 Tool/Special . | . . . Average Slot Usage (%) 94 | . 94 98 Engine 13 | . 13 14 Leg 28 | . 28 28 Device 10 | . 10 14 Storage 12 | . 12 14 Ballistic Gun 27 | . 28 19 Peak Build Rating 8 | 5 7 8 Average Rating 6 | 4 6 7 On Entrance 4 | . 5 7 Avg Prop Armor Cover (%) . | . . . Naked Turns . | . . . Heaviest Build 19 | 6 19 19 Greatest Support 20 | 20 20 20 Greatest Overweight (x) . | . . . Average Overweight (x) . | . . . Largest Inventory Capacity 10 | 5 10 10 Average Capacity 9 | 5 9 10 Most Carried 9 | 2 9 9 Average Carried 6 | 1 7 8 Final Capacity 10 | 5 10 10 Final Carried 9 | 2 9 8 Class Distribution -------------------- 90% | Mutant 9% | Scavenger-Mutant Dominant Class ---------------- Mutant | -10/Materials Scavenger-Mutant | -10/Subcaves Resources | -11 -10 -10 ----------- Run | Yrd Mat Sub Matter Collected 492 | 157 295 40 Remotely . | . . . Salvage Created 424 | . 337 87 Parts 30 | . 27 3 Haulers Intercepted 1 | . 1 . Recyclers Shooed 1 | . 1 . Parts Field Recycled . | . . . Retrieved Matter . | . . . Parts Self-Destructed . | . . . Prevented . | . . . Parts Restored . | . . . Kills | -11 -10 -10 ------- Run | Yrd Mat Sub Combat Hostiles Destroyed 12 | . 10 2 Guns 12 | . 10 2 Classes Destroyed 5 | . 4 1 Hauler 1 | . 1 . Watcher 1 | . 1 . Swarmer 6 | . 6 . Grunt 4 | . 4 . Subdweller 2 | . . 2 Best Kill Streak 3 | . 3 2 Combat Bots Only 3 | . 3 2 Max Kills in Single Turn 1 | . 1 1 Gunslinging . | . . . Exploded . | . . . Melee . | . . . Uniques/NPCs Destroyed . | . . . Combat | -11 -10 -10 -------- Run | Yrd Mat Sub Hostile Shots Fired 67 | . 53 14 Missed 8 | . 7 1 Hits 59 | . 46 13 Projectile 59 | . 46 13 Critical Strikes 4 | . 4 . Damage Taken 831 | . 511 320 Core 268 | . 168 100 Absorbed by Shields . | . . . Core Remaining (%) 100 | 100 . . Volleys Fired 52 | . 42 10 Largest 2 | . 2 2 Hottest 70 | . 40 70 Shots Fired 104 | . 84 20 Gun 104 | . 84 20 Cannon . | . . . Launcher . | . . . Special . | . . . Kinetic 101 | . 84 17 Thermal 3 | . . 3 Explosive . | . . . Electromagnetic . | . . . Robot Hit Streak 17 | . 7 17 Robot Miss Streak 3 | . 3 1 Penetration Max . | . . . Secondary Targets 1 | . 1 . Max Gunslinging Chain 1 | . 1 . Shots Hit Robots 70 | . 51 19 Core Hits 28 | . 20 8 Critical Kills . | . . . Critical Parts Destroyed 1 | . 1 . Critical Strikes 1 | . 1 . Destroy 1 | . 1 . Melee Attacks . | . . . Impact . | . . . Slashing . | . . . Piercing . | . . . Sneak Attacks . | . . . Combat Hostiles . | . . . Follow-up Attacks . | . . . Damage Inflicted 765 | . 579 186 Guns 742 | . 556 186 Cannons . | . . . Explosions . | . . . Melee . | . . . Ramming 23 | . 23 . Kinetic 717 | . 556 161 Thermal 25 | . . 25 Explosive . | . . . Electromagnetic . | . . . Impact . | . . . Slashing . | . . . Piercing . | . . . Highest Corruption . | . . . Average Corruption . | . . . Corruption Purged . | . . . Corruption Blocked . | . . . Overload Shots . | . . . Overflow Damage . | . . . Projectiles . | . . . Explosions . | . . . Melee . | . . . Knockbacks . | . . . Impact . | . . . Kinetic . | . . . Secondary . | . . . Self-Inflicted Damage . | . . . Shots . | . . . Rammed . | . . . Targets Rammed 9 | . 9 . Kicked 9 | . 9 . Crushed . | . . . Highest Temperature 12 | . 12 . Average Temperature 7 | . 7 . Received Heat Transfer 333 | . 231 102 Siege Activations . | . . . Martial Activations . | . . . Shielding Activations . | . . . Robots Disrupted . | . . . Combat Hostiles . | . . . Robots Corrupted . | . . . Combat Hostiles . | . . . Parts Fried . | . . . Impact Corruptions . | . . . Robots Melted . | . . . Combat Hostiles . | . . . Parts Melted . | . . . Heat Transferred 74 | . . 74 Parts Sabotaged . | . . . Parts Stolen . | . . . Parts Stripped . | . . . Power Chain Reactions . | . . . Alert | -11 -10 -10 ------- Run | Yrd Mat Sub Maximum Alert Level . | . . . Low Security (%) 100 | 100 100 . Level 1 . | . . . Level 2 . | . . . Level 3 . | . . . Level 4 . | . . . Level 5 . | . . . High Security . | . . . Max Security . | . . . Peak Influence 78 | . 78 . Initial . | . . . Average 21 | . 22 . Influence Increases 285 | . 285 . Destroy 0b10 Robot/C 200 | . 200 . Destroy 0b10 Robot/NC 10 | . 10 . Destroy Leader 44 | . 44 . Destroy Structure 1 | . 1 . Lose Combat Pursuer 30 | . 30 . Influence Decreases 285 | . 271 14 Entered New Map 7 | . . 7 Time Decay 269 | . 269 . Lost Part 9 | . 2 7 Squads Dispatched 2 | . 2 . Investigation 2 | . 2 . Extermination . | . . . Reinforcement . | . . . Assault . | . . . Garrison . | . . . Intercept . | . . . Searches Triggered . | . . . Construction Impeded . | . . . Haulers Reinforced . | . . . Active Scanning Responses . | . . . Cargo Convoy Interrupts . | . . . Stealth | -11 -10 -10 --------- Run | Yrd Mat Sub Distress Signals . | . . . Communications Jammed . | . . . Distress Signals . | . . . Times Spotted 20 | . 17 3 Peak Tracking Total 3 | . 3 2 Tactical Retreats 2 | . 2 . Traps | -11 -10 -10 ------- Run | Yrd Mat Sub Traps Triggered 2 | . 2 . Indirectly . | . . . Trap Hack Attempts . | . . . Triggered . | . . . Disarmed . | . . . Reprogrammed . | . . . Reused . | . . . Traps Extracted . | . . . Installed . | . . . Triggered . | . . . Machines | -11 -10 -10 ---------- Run | Yrd Mat Sub Machines Disabled . | . . . Max in Single Turn . | . . . Machines Repaired . | . . . Machines Dismantled . | . . . Machines Sabotaged . | . . . Overloaded Fab Kills . | . . . Hacking | -11 -10 -10 --------- Run | Yrd Mat Sub Machines Accessed 2 | . 2 . Terminals 2 | . 2 . Fabricators . | . . . Repair Stations . | . . . Recycling Units . | . . . Scanalyzers . | . . . Garrison Access . | . . . Total Hacks 4 | . 4 . Successful 1 | . 1 . Failed 3 | . 3 . Catastrophic . | . . . Database Lockouts . | . . . Manual 2 | . 2 . Terminals 4 | . 4 . Fabricators . | . . . Repair Stations . | . . . Recycling Units . | . . . Scanalyzers . | . . . Garrison Access . | . . . Terminal Hacks 1 | . 1 . Zone Layout 1 | . 1 . Fabricator Hacks . | . . . Repair Station Hacks . | . . . Recycling Unit Hacks . | . . . Scanalyzer . | . . . Garrison Access Hacks . | . . . Unauthorized Hacks . | . . . Terminals . | . . . Fabricators . | . . . Repair Stations . | . . . Recycling Units . | . . . Scanalyzers . | . . . Garrison Access . | . . . Data Cores Recovered . | . . . Used . | . . . Hacking Detections 2 | . 2 . Full Trace Events 1 | . 1 . Feedback Events . | . . . Feedback Blocked . | . . . Robot Schematics Acquired . | . . . Robots Built . | . . . Authchips . | . . . Time . | . . . Total Robot Build Rating . | . . . Part Schematics Acquired . | . . . Parts Built . | . . . Authchips . | . . . Time . | . . . Total Part Build Rating . | . . . Part Studies Acquired . | . . . Parts Repaired . | . . . Time . | . . . Parts Recycled . | . . . Recycled Matter . | . . . Retrieved Matter . | . . . Retrieved Components . | . . . Parts Scanalyzed . | . . . Part Schematics Acquired . | . . . Parts Damaged . | . . . Bothacking | -11 -10 -10 ------------ Run | Yrd Mat Sub Used RIF Installer . | . . . Robots Hacked . | . . . Non-combat . | . . . Combat . | . . . Robot Hacks Applied . | . . . Relay Couplers Released . | . . . Fabnet Peak Effective % . | . . . Robots Rewired . | . . . Allies Hacked . | . . . Hacks Repelled . | . . . Allies | -11 -10 -10 -------- Run | Yrd Mat Sub Total Allies . | . . . Largest Group . | . . . Highest-Rated Group . | . . . Highest-Rated Ally . | . . . Total Orders . | . . . Ally Attacks . | . . . Total Damage . | . . . Kills . | . . . Allies Corrupted . | . . . Allies Melted . | . . . Intel | -11 -10 -10 ------- Run | Yrd Mat Sub Active Infowar (turns) . | . . . Robot Analysis Total . | . . . Derelict Logs Recovered . | . . . Drone Launches . | . . . Drone Recoveries . | . . . Exploration | -11 -10 -10 ------------- Run | Yrd Mat Sub Turns Passed 1045 | 66 872 107 Spaces Moved 616 | 50 508 58 Core 4 | 4 . . Treads . | . . . Legs 612 | 46 508 58 Wheels . | . . . Hover . | . . . Flight . | . . . Fastest Speed 50 | 50 120 120 Average Speed 119 | 114 120 120 Slowest Speed 120 | 120 120 120 Overloaded Moves . | . . . Propulsion Burnouts . | . . . Robots Hopped . | . . . Potential Cave-ins . | . . . Cave-ins Triggered . | . . . Exploration Rate (%) 33 | 3 90 6 Regions Visited 2 Branch Regions 1 Pre-discovered Areas . | . . . Known Exits Taken . | . . . Unknown Exits Taken 2 | 1 1 . Scrap Searched . | . . . Spaces Dug . | . . . Terrain Destroyed . | . . . Melee . | . . . Projectile . | . . . AOE . | . . . Terrain Rammed . | . . . Walls Destroyed . | . . . Machines Disabled . | . . . Actions | -11 -10 -10 --------- Run | Yrd Mat Sub Total 824 | 56 691 77 Wait 126 | . 122 4 Move 614 | 49 507 58 Hop . | . . . Pick Up 11 | 2 7 2 Fast Attach 7 | 5 2 . Attach 4 | . 1 3 Detach . | . . . Swap 1 | . 1 . Drop . | . . . Fire 52 | . 42 10 Melee . | . . . Ram . | . . . Kick 9 | . 9 . Crush . | . . . Escape Stasis . | . . . Rewire . | . . . Trap . | . . . Miscellaneous . | . . . Route ------- -11/Scrapyard -10/Materials (discovered 5 exits: [*Mat x3] / [*Min] / [*Sub]) -10/Subcaves History --------- Turn | Location | Event 3 | -11/Scrapyard | Discovered new exit (range 16) 67 | -11/Scrapyard | Entered Materials 131 | -10/Materials | Discovered new exit (range 16) 167 | -10/Materials | Discovered new exit (range 8) 306 | -10/Materials | Build established: Mutant 390 | -10/Materials | Core integrity fell below 50% 440 | -10/Materials | Discovered new exit (range 15) 689 | -10/Materials | Discovered new exit (range 15) 920 | -10/Materials | Discovered new exit (range 6) 939 | -10/Materials | Entered Subcaves 949 | -10/Subcaves | Core integrity fell below 20% 1000 | -10/Subcaves | Shifting Twisted Machinery released Battle Rifle 1000 | -10/Subcaves | Shifting Twisted Machinery released Mak. Flight Unit 1046 | -10/Subcaves | Destroyed by 2M-353(R) with Subdweller Laser Last Messages --------------- 00931_ U-05 Engineer lays Concrete. 00931_ U-05 Engineer builds a Wall. 00934_ T-07 Excavator is excavating. 00937_ U-05 Engineer lays Concrete. 00938_ Kicked U-05 Engineer. LOCATION=UNKNOWN AMBIENT_HEAT=-10 GOAL=ESCAPE 00952_ Ion Engine destroyed. 00961_ 9G-65Z(R) destroyed. 00964_ Acquired 29 matter. 00967_ Subatomizers dissect the Disposable Heat Sink. 00978_ Assault Rifle destroyed. 00981_ GA-HM7(R) destroyed. 00985_ Acquired 11 matter. 00987_ Acquired Sub. Laser. Battle Rifle falls loose from the Twisted Machinery. Mak. Flight Unit falls loose from the Twisted Machinery. 01008_ Acquired Battle Rifle. 01040_ Aluminum Leg destroyed. Map ----- +----------------------------------------------------+ | ???????????????????????????????????? | | ??????????????????????????#######??? | | ??????????????????????????# #?## | | ?????????????????????###### ### | | ????????????????????## ### ## | | ???????????????????## ## | | ??????????????????##" & | | ????????????????###" ## %&### | | ???????????????##" #### ###?# | | ??????????????## # ### #??# | | ??????????????# " ##??# | | ??????????????# " ""## ## #???? | | ??????????????##=""" """#? # #???? | | ???????????????###" ""##? ???? | | ?????????????????#### " #? # #???? | | ??????????????######## ## ####???? | | ??????????????# ## #????? | | ??????????????## #????? | | ?????????????### #????? | | ?????????##### #????? | | ?????????#<<### ### #?? | | ?????????# ## ####?## #? | | ?????????# ## #?????### # | | ??????????< <# #???????? ##### | | ?????????## ## #????????##????? | | ?????????# @#" #???????????????? | | ?????????# #????????????????? ? | | ?????????# #??????????????????? | | ?????????#R#<< #??????????????????? | | ???????? < ###< #??????????????????? | | ???????#" ??# #??????????????????? | | ?????? #??## #??????????????????? | | ????? " #????# #??????????????????? | | ?????####?????## ??????????????????? | | ???????????????? ?????????????????? | | ???????????????? ?????????????????? | | ???????????????? ?????????????????? | | ????????????????# ?????????????????? | | ?????????????????#?????????????????? | | ???????????????????????????????????? | | ???????????????????????????????????? | | ???????????????????????????????????? | | ???????????????????????????????????? | | ???????????????????????????????????? | | ???????????????????????????????????? | | ???????????????????????????????????? | | ???????????????????????????????????? | | ???????????????????????????????????? | | ???????????????????????????????????? | | ???????????????????????????????????? | +----------------------------------------------------+ Best States ------------- Heat Dissipation 35 Energy Generation 10 Energy Capacity 250 Matter Stores 300 Matter Capacity 300 Sight Range 16 Terrain Scan Density 10 Evasion (%) 55 Item Schematics ----------------- None Robot Schematics ------------------ None Fabricated ------------ Nothing Repaired ---------- Nothing Studied --------- None Alien Tech Used ----------------- None Achievements -------------- None Challenges ------------ None Game ------ Seed AlloyMachineFlakker Manual? 0 Play Time 00:05:18 Cumulative 663.0 hours Start 2026.07.07 @ 14:18:07 End 2026.07.07 @ 14:22:36 Sessions 1 Manual Loads 0 Difficulty Rogue Special Mode None Game No. 439 Rogue 439 Adventurer 0 Explorer 0 Win Type - Total 38 Types 25/1/6/6/0/0/0/0/0/0 Lore% 72 Gallery% 69 Achievement% 52 Wizard Run 0 Options --------- Layout 0 ASCII 1 Keyboard 0 Movement Numpad Keybinds 0 Fullscreen 2 Font 24/Smallcaps Map View 76x50 Zoom Use 0% Tactical HUD 1 Map Filters NONE Filters NONE Steam 1 RUN: 78372a2f-213b-4fbf-9661-a27225132f21